bitfinex-derivatives/quotes_SOLF0:USTF0_20260204
["timestamp","ask_amount","ask_price","bid_price","bid_amount"]
[1770195308245,4.35792808,97.495,97.44,3.36649636]
[1770195310151,4.35792808,97.495,97.45,3.36649636]
[1770195311150,4.35792808,97.495,97.45,12.61349636]
[1770195311454,4.35792808,97.495,97.46,3.36649636]
[1770195314459,9.58281032,97.549,97.421,143.8858]
[1770195314460,4.33399649,97.525,97.48,3.36649636]
[1770195316559,4.33399649,97.525,97.474,9.2448]
[1770195318257,4.33399649,97.525,97.47,3.36649636]
[1770195318660,4.31096705,97.519,97.465,9.2456]
[1770195319055,9.58281032,97.554,97.464,143.8224]
[1770195319056,4.31096705,97.548,97.464,143.8224]
[1770195319356,4.31096705,97.548,97.5,3.36649636]
[1770195322554,4.2904504,97.546,97.5,3.36649636]
[1770195323964,4.29627534,97.543,97.5,3.36649636]
[1770195324260,4.29627534,97.543,97.49,3.36649636]
[1770195324960,4.29627534,97.539,97.48,3.36649636]
[1770195325164,143.6656,97.571,97.392,25.24159337]
[1770195325165,3.58488092,97.509,97.433,2.61716959]
[1770195325366,3.58488092,97.489,97.433,2.61716959]
[1770195325560,3.58488092,97.479,97.433,2.61716959]
[1770195325867,3.58488092,97.479,97.42,5.96783474]
[1770195326266,3.58488092,97.479,97.43,3.36649636]
[1770195326470,3.58488092,97.488,97.431,2.60133838]
[1770195327062,3.58488092,97.488,97.44,3.36649636]
[1770195327264,3.58488092,97.485,97.44,3.36649636]
[1770195327567,3.58488092,97.485,97.431,2.60133838]
[1770195329059,3.58488092,97.483,97.431,2.60133838]
[1770195329262,3.58488092,97.479,97.431,2.60133838]
[1770195330065,3.58488092,97.477,97.42,3.36649636]
[1770195330469,3.58488092,97.476,97.42,3.36649636]
[1770195330768,3.58488092,97.475,97.42,3.36649636]
[1770195331770,3.58488092,97.464,97.42,3.36649636]
[1770195333872,9.2465,97.465,97.421,2.49833866]
[1770195334073,3.58488092,97.46,97.41,5.86483502]
[1770195334777,3.36649636,97.47,97.421,2.49833866]
[1770195334778,3.58488092,97.469,97.421,2.49833866]
[1770195335472,3.58488092,97.469,97.387,143.949]
[1770195335473,3.58488092,97.449,97.401,2.49491067]
[1770195335868,3.58488092,97.449,97.41,3.36649636]
[1770195336074,3.58488092,97.479,97.43,3.36649636]
[1770195336271,3.58488092,97.479,97.44,3.36649636]
[1770195337172,3.58488092,97.479,97.43,3.36649636]
[1770195338371,3.58488092,97.479,97.422,2.49491067]
[1770195341271,3.58488092,97.479,97.404,2.29900217]
[1770195341473,8.42799269,97.48,97.404,2.29900217]
[1770195341474,3.58488092,97.477,97.404,2.29900217]
[1770195342273,3.58488092,97.461,97.404,2.29900217]
[1770195344775,3.58488092,97.461,97.406,9.252]
[1770195344975,3.58488092,97.475,97.407,2.33079698]
[1770195345778,3.58488092,97.475,97.426,2.33932933]
[1770195345972,133.7,97.486,97.426,2.33932933]
[1770195346778,133.7,97.486,97.429,2.33932933]
[1770195347179,9.2447,97.484,97.429,2.33932933]
[1770195348079,3.58488092,97.506,97.441,2.30801997]
[1770195349783,3.58488092,97.523,97.461,2.29825792]
[1770195350172,3.58488092,97.523,97.465,2.29825792]
[1770195351687,3.58488092,97.523,97.475,9.2455]
[1770195351983,3.58488092,97.523,97.476,2.36891785]
[1770195352482,3.58488092,97.523,97.478,2.54564759]
[1770195353380,3.58488092,97.523,97.48,9.2451]
[1770195353584,3.58488092,97.523,97.478,2.54564759]
[1770195355675,3.58488092,97.523,97.48,9.245]
[1770195357391,3.58488092,97.523,97.485,9.2445]
[1770195360092,4.51321101,97.538,97.486,4.20511005]
[1770195360293,4.51321101,97.551,97.486,4.20511005]
[1770195360495,4.51321101,97.551,97.51,3.36612796]
[1770195360991,4.51321101,97.564,97.52,3.36612796]
[1770195361491,4.51321101,97.578,97.54,3.36612796]
[1770195361890,4.51321101,97.578,97.531,4.20511005]
[1770195362797,4.51321101,97.559,97.5,3.36612796]
[1770195363496,4.51321101,97.559,97.512,9.242]
[1770195363894,4.51321101,97.559,97.5,3.36612796]
[1770195364590,4.51321101,97.559,97.5,7.57123801]
[1770195365894,4.51321101,97.559,97.501,4.20511005]
[1770195366495,4.51321101,97.559,97.511,4.20511005]
[1770195366890,4.51321101,97.559,97.52,3.36612796]
[1770195367090,4.51321101,97.591,97.531,4.20511005]
[1770195368299,4.51321101,97.588,97.54,3.36612796]
[1770195368496,4.51321101,97.588,97.533,9.24]
[1770195369297,4.51321101,97.588,97.531,4.20511005]
[1770195370891,4.51321101,97.588,97.51,8.40979317]
[1770195370892,4.51321101,97.588,97.534,4.20511005]
[1770195371703,4.51321101,97.588,97.535,9.2399]
[1770195374007,4.51321101,97.585,97.524,9.2409]
[1770195374496,4.51321101,97.585,97.524,13.44601005]
[1770195374698,4.51321101,97.585,97.525,4.20511005]
[1770195375000,4.51321101,97.583,97.527,4.20511005]
[1770195376696,4.51321101,97.581,97.527,4.20511005]
[1770195378204,4.51321101,97.577,97.527,4.20511005]
[1770195381707,4.51321101,97.577,97.529,15.83284836]
[1770195382312,4.51321101,97.577,97.53,6.59244836]
[1770195383202,4.51321101,97.577,97.533,9.24]
[1770195385107,6.54331329,97.576,97.492,6.59244836]
[1770195385403,6.54331329,97.559,97.477,6.59244836]
[1770195385599,6.54331329,97.551,97.486,9.2445]
[1770195385798,6.54331329,97.551,97.477,6.59244836]
[1770195386201,6.54331329,97.551,97.489,6.59244836]
[1770195387613,6.54331329,97.551,97.5,9.2432]
[1770195389101,3.36686704,97.55,97.5,9.2432]
[1770195389308,6.54331329,97.549,97.5,9.2432]
[1770195389504,6.54331329,97.549,97.511,6.59244836]
[1770195389709,6.54331329,97.569,97.511,6.59244836]
[1770195390311,6.54331329,97.569,97.511,15.83454836]
[1770195390611,6.54331329,97.559,97.511,6.59244836]
[1770195392917,6.54331329,97.559,97.51,3.36686704]
[1770195393113,6.54331329,97.559,97.507,9.2425]
[1770195393313,6.54331329,97.559,97.501,6.59244836]
[1770195393512,6.54331329,97.555,97.501,6.59244836]
[1770195393715,6.54331329,97.549,97.501,6.59244836]
[1770195398225,6.54331329,97.547,97.501,6.59244836]
[1770195400320,6.54331329,97.547,97.5,3.36686704]
[1770195400321,6.54331329,97.539,97.48,3.36686704]
[1770195400514,9.48528041,97.58,97.44,3.36686704]
[1770195400515,3.36686704,97.51,97.44,3.36686704]
[1770195400713,143.7497,97.524,97.44,3.36686704]
[1770195400714,6.54331329,97.497,97.441,6.59244836]
[1770195400913,132.28,97.512,97.441,6.59244836]
[1770195400914,6.54331329,97.489,97.441,6.59244836]
[1770195402724,6.54331329,97.489,97.443,9.2485]
[1770195402928,6.54331329,97.489,97.441,6.59244836]
[1770195403526,6.54331329,97.485,97.431,6.59244836]
[1770195404324,6.54331329,97.485,97.441,6.59244836]
[1770195405227,6.54331329,97.501,97.451,6.59244836]
[1770195406429,6.54331329,97.499,97.451,6.59244836]
[1770195407726,6.54331329,97.496,97.451,6.59244836]
[1770195409132,6.54331329,97.496,97.405,6.59244836]
[1770195409334,3.36686704,97.47,97.413,6.59244836]
[1770195409631,6.54331329,97.469,97.43,3.36686704]
[1770195409821,6.54331329,97.484,97.44,3.36686704]
[1770195410021,6.54331329,97.484,97.441,6.59244836]
[1770195410226,6.54331329,97.504,97.45,3.36686704]
[1770195410427,6.54331329,97.499,97.441,6.59244836]
[1770195411332,6.17334622,97.498,97.441,6.59244836]
[1770195411830,6.17334622,97.495,97.441,6.59244836]
[1770195412829,6.17334622,97.495,97.451,6.07046774]
[1770195419032,141.34704723,97.508,97.46,9.4343662]
[1770195419337,6.08704723,97.507,97.46,9.4343662]
[1770195419739,6.08704723,97.533,97.481,6.06439044]
[1770195419936,143.6707,97.577,97.452,143.8533]
[1770195419937,135.5,97.544,97.5,3.36997576]
[1770195420136,141.58704723,97.544,97.5,3.36997576]
[1770195420338,6.08704723,97.543,97.5,3.36997576]
[1770195420639,6.08704723,97.543,97.491,6.06439044]
[1770195421743,6.08704723,97.559,97.491,6.06439044]
[1770195421939,6.08704723,97.579,97.511,6.06439044]
[1770195422234,6.08704723,97.577,97.52,3.36997576]
[1770195422839,135.98,97.578,97.52,3.36997576]
[1770195422840,6.08704723,97.567,97.52,3.36997576]
[1770195424338,6.08704723,97.567,97.53,3.36997576]
[1770195425541,6.08704723,97.567,97.521,6.06439044]
[1770195425742,6.08704723,97.567,97.51,3.36997576]
[1770195426846,6.08704723,97.564,97.51,3.36997576]
[1770195427045,6.08704723,97.559,97.506,6.06439044]
[1770195427250,6.08704723,97.559,97.51,3.36997576]
[1770195427542,6.08704723,97.559,97.5,3.36997576]
[1770195427748,6.08704723,97.559,97.501,6.06439044]
[1770195428148,6.08704723,97.559,97.51,3.36997576]
[1770195428347,6.08704723,97.559,97.501,6.06439044]
[1770195428846,6.08704723,97.559,97.501,15.30749044]
[1770195428847,6.08704723,97.558,97.501,15.30749044]
[1770195430143,6.08704723,97.558,97.51,3.36997576]
[1770195430945,6.08704723,97.558,97.52,3.36997576]
[1770195432944,137.5,97.57,97.53,3.36997576]
[1770195433243,6.08704723,97.59,97.55,3.36997576]
[1770195434148,6.08704723,97.588,97.541,6.06439044]
[1770195435843,6.08704723,97.585,97.541,6.06439044]
[1770195437750,9.2353,97.583,97.541,6.06439044]
[1770195437945,6.08704723,97.582,97.53,3.36997576]
[1770195439145,7.56352205,97.606,97.503,168.92]
[1770195439146,6.08704723,97.57,97.52,3.36997576]
[1770195439350,6.08704723,97.559,97.499,6.06439044]
[1770195439550,6.08704723,97.549,97.499,6.06439044]
[1770195439750,6.08704723,97.543,97.499,6.06439044]
[1770195443251,6.08704723,97.543,97.5,3.36997576]
[1770195443653,6.08704723,97.543,97.49,3.36997576]
[1770195444054,6.08704723,97.543,97.49,9.47479087]
[1770195444356,6.08704723,97.543,97.491,6.10481511]
[1770195444759,9.2393,97.542,97.491,6.10481511]
[1770195445754,15.32070482,97.542,97.491,6.10481511]
[1770195446255,15.32070482,97.542,97.5,3.36997576]
[1770195446457,6.08140482,97.541,97.491,6.10481511]
[1770195446657,6.08140482,97.541,97.492,9.2439]
[1770195446853,6.08140482,97.539,97.493,6.10481511]
[1770195449659,6.08140482,97.539,97.494,9.2437]
[1770195450960,6.08140482,97.539,97.494,15.34851511]
[1770195451955,6.08140482,97.539,97.498,9.2433]
[1770195452159,6.08140482,97.552,97.501,6.10481511]
[1770195452362,141.94,97.562,97.511,6.10481511]
[1770195452559,6.08140482,97.566,97.489,143.7985]
[1770195452560,6.08140482,97.566,97.521,6.10481511]
[1770195454362,6.08140482,97.566,97.522,9.2411]
[1770195455658,6.08140482,97.566,97.521,6.10481511]
[1770195455659,3.36997576,97.56,97.508,6.10481511]
[1770195455860,6.08140482,97.549,97.508,6.10481511]
[1770195459172,9.2388,97.546,97.508,6.10481511]
[1770195459378,6.08140482,97.576,97.511,6.10481511]
[1770195460171,6.08140482,97.571,97.511,6.10481511]
[1770195460373,18.4646,97.616,97.511,6.10481511]
[1770195460374,6.08140482,97.569,97.511,6.10481511]
[1770195461670,6.08140482,97.56,97.511,6.10481511]
[1770195462073,6.08140482,97.559,97.511,6.10481511]
[1770195463772,6.08140482,97.546,97.501,6.10481511]
[1770195464576,9.2389,97.545,97.501,6.10481511]
[1770195465275,9.2392,97.543,97.501,6.10481511]
[1770195467878,15.32060482,97.543,97.501,6.10481511]
[1770195468082,15.32120482,97.536,97.49,3.36997576]
[1770195468282,6.08140482,97.536,97.485,6.10481511]
[1770195469880,6.08140482,97.555,97.501,6.10481511]
[1770195470074,6.08140482,97.553,97.51,3.36997576]
[1770195470271,6.08140482,97.551,97.501,6.10481511]
[1770195470475,9.2388,97.547,97.501,6.10481511]
[1770195470880,14.57821174,97.547,97.501,6.10481511]
[1770195471479,5.33941174,97.546,97.501,6.10481511]
[1770195474384,5.33941174,97.559,97.503,5.38914306]
[1770195475085,5.33941174,97.559,97.505,5.38914306]
[1770195475681,5.33941174,97.559,97.509,9.2423]
[1770195475981,5.33941174,97.559,97.511,5.38914306]
[1770195478081,5.79534976,97.555,97.501,9.243]
[1770195478283,5.79534976,97.549,97.498,5.61561248]
[1770195480481,5.79534976,97.547,97.498,5.61561248]
[1770195480678,5.79534976,97.539,97.485,5.61561248]
[1770195480990,146.36,97.554,97.471,5.61561248]
[1770195480991,5.79534976,97.529,97.471,5.61561248]
[1770195481889,15.03584976,97.529,97.481,5.61561248]
[1770195482087,5.79534976,97.529,97.481,5.61561248]
[1770195482289,5.79534976,97.541,97.481,5.61561248]
[1770195483391,9.2404,97.53,97.481,5.61561248]
[1770195486893,9.2404,97.53,97.483,5.61561248]
[1770195487594,9.2396,97.538,97.485,5.61561248]
[1770195488392,9.2396,97.538,97.491,5.61561248]
[1770195488586,5.79534976,97.535,97.491,5.61561248]
[1770195491690,9.2401,97.533,97.491,5.61561248]
[1770195493601,5.79534976,97.532,97.491,5.61561248]
[1770195495001,9.2403,97.531,97.491,5.61561248]
[1770195495697,5.79534976,97.532,97.491,5.61561248]
[1770195495698,5.79534976,97.53,97.491,5.61561248]
[1770195496001,15.03584976,97.529,97.491,5.61561248]
[1770195496200,5.79534976,97.528,97.491,5.61561248]
[1770195498204,15.03604976,97.527,97.491,5.61561248]
[1770195498896,9.2414,97.519,97.48,3.36647944]
[1770195499099,5.79534976,97.526,97.48,9.245]
[1770195499304,5.79534976,97.539,97.491,5.61561248]
[1770195499905,9.2398,97.536,97.491,5.61561248]
[1770195501806,9.2398,97.536,97.5,3.36647944]
[1770195503308,9.2398,97.536,97.491,5.61561248]
[1770195507812,14.43952535,97.536,97.491,5.61561248]
[1770195510013,5.19972535,97.569,97.511,5.41446203]
[1770195510210,5.19972535,97.567,97.511,5.41446203]
[1770195510411,5.19972535,97.565,97.511,5.41446203]
[1770195511713,14.43812535,97.551,97.511,5.41446203]
[1770195511912,5.19972535,97.55,97.5,3.36647944]
[1770195512113,5.19972535,97.55,97.501,5.41446203]
[1770195513418,9.2386,97.549,97.501,5.41446203]
[1770195513603,9.2386,97.549,97.511,5.41446203]
[1770195516316,5.19972535,97.55,97.52,3.36647944]
[1770195523119,5.19972535,97.566,97.53,3.36647944]
[1770195523313,5.19972535,97.566,97.521,5.41446203]
[1770195524026,5.19972535,97.566,97.531,5.41446203]
[1770195524417,5.19972535,97.564,97.52,3.36647944]
[1770195524919,5.19972535,97.562,97.52,3.36647944]
[1770195525623,5.19972535,97.56,97.519,5.41446203]
[1770195526820,9.2383,97.552,97.519,5.41446203]
[1770195527020,9.2383,97.552,97.52,3.36647944]
[1770195527414,9.2383,97.552,97.52,8.78094147]
[1770195530324,5.19972535,97.56,97.52,8.78094147]
[1770195531924,5.19972535,97.56,97.526,9.2407]
[1770195532125,5.13330542,97.573,97.531,5.4025986]
[1770195532829,5.13330542,97.573,97.523,5.39116737]
[1770195533326,5.13330542,97.573,97.525,5.42883027]
[1770195534222,5.13330542,97.573,97.527,9.2406]
[1770195537729,5.13330542,97.573,97.522,5.37234388]
[1770195538230,5.13330542,97.573,97.54,3.36647944]
[1770195538430,5.13330542,97.573,97.54,3.36379996]
[1770195539828,5.35148432,97.595,97.541,5.16656423]
[1770195540332,5.35148432,97.591,97.541,5.16656423]
[1770195541630,5.35148432,97.591,97.551,5.16656423]
[1770195541929,9.48528041,97.64,97.511,143.7659]
[1770195541930,5.35148432,97.629,97.571,5.16656423]
[1770195542129,5.35148432,97.618,97.571,5.16656423]
[1770195542332,5.35148432,97.618,97.56,3.36379996]
[1770195542527,5.35148432,97.618,97.558,5.16656423]
[1770195542929,3.36379996,97.65,97.59,3.36379996]
[1770195543336,9.2317,97.622,97.581,5.16656423]
[1770195544036,9.2317,97.622,97.57,3.36379996]
[1770195544228,9.2317,97.622,97.571,5.16656423]
[1770195544829,5.35148432,97.621,97.571,5.16656423]
[1770195546026,5.35148432,97.61,97.571,5.16656423]
[1770195546430,5.35148432,97.61,97.558,5.16656423]
[1770195546431,5.35148432,97.609,97.558,5.16656423]
[1770195547530,14.58618432,97.59,97.545,5.16656423]
[1770195547932,9.2361,97.576,97.545,5.16656423]
[1770195550644,9.2361,97.576,97.477,143.8167]
[1770195550645,5.35148432,97.605,97.561,5.16656423]
[1770195551841,9.2344,97.593,97.561,5.16656423]
[1770195555539,9.2336,97.602,97.561,5.16656423]
[1770195555840,9.2336,97.602,97.57,3.36379996]
[1770195556039,143.5784,97.64,97.58,3.36379996]
[1770195556040,5.35148432,97.618,97.58,3.36379996]
[1770195556741,9.2333,97.605,97.571,5.16656423]
[1770195556942,5.35148432,97.618,97.571,5.16656423]
[1770195558137,9.2331,97.607,97.571,5.16656423]
[1770195559637,5.35148432,97.618,97.571,5.16656423]
[1770195559943,5.35148432,97.618,97.58,3.36379996]
[1770195560145,5.35148432,97.631,97.59,3.36379996]
[1770195560346,5.35148432,97.631,97.591,5.16656423]
[1770195561943,9.231,97.63,97.591,5.16656423]
[1770195562542,5.35148432,97.631,97.591,5.16656423]
[1770195562745,5.14592309,97.646,97.6,8.19988545]
[1770195562948,5.14592309,97.646,97.601,4.83608549]
[1770195563846,9.2295,97.645,97.601,4.83608549]
[1770195565043,9.2305,97.634,97.601,4.83608549]
[1770195572552,5.14592309,97.64,97.601,4.83608549]
[1770195573447,9.2303,97.637,97.601,4.83608549]
[1770195575546,5.14592309,97.636,97.601,4.83608549]
[1770195577446,5.14592309,97.636,97.557,143.6987]
[1770195577447,5.14592309,97.625,97.529,19.09685204]
[1770195577655,5.14592309,97.609,97.55,3.36379996]
[1770195577853,5.14592309,97.622,97.57,3.36379996]
[1770195578053,5.14592309,97.622,97.535,143.7317]
[1770195578054,5.14592309,97.622,97.58,3.36379996]
[1770195578556,5.14592309,97.622,97.57,3.36379996]
[1770195579646,3.36379996,97.63,97.57,3.36379996]
[1770195579647,9.2318,97.621,97.571,2.55193831]
[1770195579853,5.14592309,97.62,97.571,2.55193831]
[1770195580559,5.14592309,97.617,97.571,2.55193831]
[1770195581661,9.2326,97.612,97.571,2.55193831]
[1770195582755,14.37872309,97.61,97.571,2.55193831]
[1770195583152,5.14592309,97.609,97.571,2.55193831]
[1770195583861,9.2331,97.607,97.571,2.55193831]
[1770195584069,5.14592309,97.623,97.581,2.42409824]
[1770195584264,5.14592309,97.659,97.611,2.42409824]
[1770195584457,143.5096,97.687,97.63,3.36379996]
[1770195584458,5.14592309,97.687,97.63,3.36379996]
[1770195585161,5.14592309,97.671,97.63,3.36379996]
[1770195586457,5.14592309,97.671,97.621,2.40355625]
[1770195586657,9.2271,97.67,97.621,2.40355625]
[1770195586854,14.37302309,97.67,97.621,2.40355625]
[1770195587059,14.37302309,97.67,97.63,3.36379996]
[1770195587255,5.14592309,97.67,97.63,3.36379996]
[1770195589162,5.14592309,97.67,97.621,2.40355625]
[1770195589163,5.14592309,97.67,97.608,2.53792444]
[1770195589361,5.14592309,97.67,97.62,3.36379996]
[1770195589764,5.14592309,97.67,97.63,3.36379996]
[1770195589964,5.14592309,97.67,97.631,2.5045049]
[1770195590163,5.14592309,97.67,97.64,3.36379996]
[1770195590364,5.14592309,97.67,97.631,2.5045049]
[1770195591463,4.88005074,97.689,97.65,3.36379996]
[1770195591663,4.88005074,97.688,97.65,3.36379996]
[1770195591861,4.88005074,97.688,97.641,2.40706669]
[1770195592061,4.88005074,97.688,97.63,3.36379996]
[1770195592763,4.88005074,97.688,97.64,3.36379996]
[1770195593468,4.88005074,97.686,97.631,2.38823908]
[1770195594359,9.2261,97.681,97.64,3.36379996]
[1770195594559,4.88005074,97.686,97.64,5.68929601]
[1770195594761,4.88005074,97.708,97.651,2.32549605]
[1770195595066,4.88005074,97.706,97.651,2.32549605]
[1770195595264,4.88005074,97.704,97.651,2.32549605]
[1770195595665,4.88005074,97.688,97.64,3.36379996]
[1770195596366,3.36379996,97.7,97.625,2.26307542]
[1770195596367,4.88005074,97.686,97.625,2.26307542]
[1770195596563,4.88005074,97.679,97.625,2.26307542]
[1770195597267,4.88005074,97.679,97.631,2.1746765]
[1770195597465,4.83540966,97.707,97.651,2.1746765]
[1770195597669,3.36379996,97.7,97.64,3.36379996]
[1770195597872,4.83540966,97.686,97.631,2.1746765]
[1770195599279,14.06190966,97.677,97.631,2.1746765]
[1770195599484,4.83540966,97.676,97.631,2.1746765]
[1770195600481,14.06290966,97.666,97.63,3.35772264]
[1770195600684,4.83540966,97.665,97.61,3.35772264]
[1770195600879,4.83540966,97.665,97.611,2.10061381]
[1770195601384,4.83540966,97.645,97.6,3.35772264]
[1770195601685,4.83540966,97.669,97.62,3.35772264]
[1770195602281,4.83540966,97.669,97.611,2.06732487]
[1770195602683,4.83540966,97.661,97.611,2.06732487]
[1770195602982,4.83540966,97.661,97.62,3.35772264]
[1770195603283,4.83540966,97.661,97.611,2.06732487]
[1770195605281,4.83540966,97.661,97.613,9.2324]
[1770195606783,4.83540966,97.661,97.613,2.01950694]
[1770195607082,4.83540966,97.689,97.63,3.35772264]
[1770195607287,4.83540966,97.689,97.64,3.35772264]
[1770195608387,4.83540966,97.689,97.63,3.35772264]
[1770195608788,4.83540966,97.689,97.635,9.2304]
[1770195610484,4.83540966,97.689,97.63,3.35772264]
[1770195610889,4.83540966,97.679,97.621,2.01950694]
[1770195611489,4.83540966,97.679,97.623,2.06103856]
[1770195611790,4.83540966,97.679,97.63,3.35772264]
[1770195612188,4.83540966,97.679,97.604,157.0]
[1770195612189,4.83540966,97.669,97.61,5.4187612]
[1770195612882,143.4958,97.696,97.6,3.35772264]
[1770195612883,3.35772264,97.66,97.6,3.35772264]
[1770195613092,4.83540966,97.649,97.596,2.04621477]
[1770195613284,4.83540966,97.647,97.596,2.04621477]
[1770195613483,143.5242,97.677,97.566,156.94]
[1770195613484,4.83540966,97.639,97.581,1.96741352]
[1770195613789,4.83540966,97.639,97.59,3.35772264]
[1770195614690,4.83540966,97.639,97.591,1.95296542]
[1770195615491,4.83540966,97.639,97.58,3.35772264]
[1770195615682,4.83540966,97.639,97.578,1.92232891]
[1770195616791,4.83540966,97.628,97.578,1.92232891]
[1770195617393,4.83540966,97.626,97.578,1.92232891]
[1770195618487,4.83540966,97.614,97.564,1.93370314]
[1770195619884,4.83540966,97.614,97.58,3.35772264]
[1770195620398,4.83540966,97.614,97.559,9.2384]
[1770195620588,4.83540966,97.609,97.547,156.68]
[1770195620795,4.83540966,97.609,97.55,3.35772264]
[1770195621186,4.83540966,97.609,97.551,1.85963123]
[1770195621792,4.66940603,97.604,97.551,1.85963123]
[1770195622093,147.34,97.627,97.518,143.771]
[1770195622094,3.35772264,97.6,97.54,3.35772264]
[1770195622297,4.66940603,97.589,97.537,1.87499607]
[1770195623092,13.90410603,97.6,97.551,1.85766512]
[1770195623398,4.66940603,97.599,97.551,1.85766512]
[1770195624796,4.66940603,97.598,97.54,3.35772264]
[1770195625296,4.66940603,97.598,97.532,11.01391316]
[1770195625496,4.66940603,97.589,97.532,11.01391316]
[1770195625700,4.66940603,97.589,97.54,3.35772264]
[1770195626701,4.66940603,97.589,97.55,3.35772264]
[1770195629598,4.66940603,97.589,97.545,1.7834014]
[1770195629997,4.66940603,97.589,97.55,3.35772264]
[1770195630194,4.66940603,97.579,97.512,1.56145132]
[1770195630403,4.66940603,97.559,97.5,3.35772264]
[1770195630697,4.66940603,97.549,97.497,1.54595621]
[1770195631100,4.66940603,97.549,97.5,3.35772264]
[1770195631301,4.66940603,97.563,97.511,1.42581333]
[1770195631500,4.66940603,97.563,97.52,3.35772264]
[1770195631699,4.66940603,97.563,97.521,1.42581333]
[1770195631999,4.66940603,97.585,97.54,3.35772264]
[1770195632200,4.66940603,97.585,97.55,3.35772264]
[1770195632999,4.66940603,97.6,97.56,3.35772264]
[1770195633503,4.66940603,97.597,97.55,3.35772264]
[1770195634597,9.2351,97.595,97.55,3.35772264]
[1770195634798,4.66940603,97.594,97.55,3.35772264]
[1770195636198,4.66940603,97.594,97.56,3.35772264]
[1770195639002,4.66940603,97.611,97.56,3.35772264]
[1770195639204,4.66940603,97.611,97.57,3.35772264]
[1770195639708,146.72,97.62,97.551,9.2392]
[1770195639709,4.66940603,97.608,97.551,9.2392]
[1770195640509,4.66940603,97.608,97.56,3.35772264]
[1770195641009,4.66940603,97.608,97.57,3.35772264]
[1770195642008,4.66940603,97.608,97.559,9.2384]
[1770195642009,4.66940603,97.608,97.58,3.35772264]
[1770195642211,4.66940603,97.639,97.58,3.35772264]
[1770195642607,4.66940603,97.639,97.6,3.35772264]
[1770195642908,4.66940603,97.639,97.61,3.35772264]
[1770195643604,4.66940603,97.639,97.6,3.35772264]
[1770195643803,4.66940603,97.639,97.603,9.2343]
[1770195644208,4.66940603,97.639,97.6,3.35772264]
[1770195647312,4.66940603,97.668,97.62,3.35772264]
[1770195647716,4.66940603,97.668,97.63,3.35772264]
[1770195648011,4.66940603,97.668,97.62,3.35772264]
[1770195651214,4.22195603,97.666,97.62,3.35772264]
[1770195652613,4.22195603,97.666,97.611,10.55416808]
[1770195652814,4.22195603,97.664,97.612,1.177565]
[1770195653316,4.22195603,97.664,97.615,9.2331]
[1770195654009,4.22195603,97.664,97.62,3.35772264]
[1770195655421,3.35772264,97.68,97.62,3.35772264]
[1770195655422,4.22195603,97.662,97.62,3.35772264]
[1770195658715,9.2279,97.671,97.621,1.09909818]
[1770195658921,4.29871191,97.675,97.64,3.35772264]
[1770195660225,4.29871191,97.695,97.65,3.35772264]
[1770195660425,4.29871191,97.695,97.641,1.08118963]
[1770195661226,4.29871191,97.679,97.62,3.35689186]
[1770195661426,4.29871191,97.669,97.614,1.07056097]
[1770195661729,4.29871191,97.669,97.63,3.35689186]
[1770195662022,4.29871191,97.669,97.62,3.35689186]
[1770195662621,4.29871191,97.669,97.62,4.57633802]
[1770195662827,4.29871191,97.669,97.63,3.35689186]
[1770195665129,4.29871191,97.669,97.623,9.2324]
[1770195666831,4.29871191,97.669,97.63,3.35689186]
[1770195670930,4.29871191,97.682,97.65,3.35689186]
[1770195671834,4.29871191,97.682,97.642,0.98256252]
[1770195672631,4.29871191,97.682,97.641,9.2307]
[1770195672935,4.29871191,97.682,97.629,0.97328679]
[1770195672936,4.29871191,97.682,97.63,3.35689186]
[1770195673436,3.35689186,97.68,97.629,0.97328679]
[1770195673628,4.29871191,97.679,97.629,0.97328679]
[1770195673830,4.29871191,97.674,97.629,0.97328679]
[1770195674029,4.29871191,97.674,97.629,0.59949168]
[1770195675738,4.29871191,97.674,97.625,9.2322]
[1770195675739,4.29871191,97.669,97.615,9.2332]
[1770195676434,4.29871191,97.669,97.615,9.76568638]
[1770195676733,4.29871191,97.666,97.62,3.35689186]
[1770195677432,4.29871191,97.666,97.62,3.92936632]
[1770195677835,4.29871191,97.666,97.61,3.35689186]
[1770195678033,4.29871191,97.666,97.611,0.57247446]
[1770195679237,4.29871191,97.663,97.612,9.7972018]
[1770195679434,4.29871191,97.663,97.612,9.2334]
[1770195679640,4.29871191,97.659,97.601,0.55115181]
[1770195680038,13.52841191,97.653,97.603,0.55115181]
[1770195680339,4.29871191,97.652,97.603,0.55115181]
[1770195681135,4.20309956,97.642,97.592,9.2353]
[1770195681341,4.20309956,97.639,97.58,3.35689186]
[1770195681740,4.20309956,97.639,97.58,3.84667914]
[1770195681940,4.20309956,97.639,97.581,0.48978728]
[1770195682940,4.20309956,97.632,97.581,9.72618728]
[1770195683642,4.20309956,97.63,97.581,9.72618728]
[1770195684140,4.20309956,97.624,97.58,3.35689186]
[1770195684636,4.20309956,97.649,97.591,0.49348243]
[1770195684838,4.20309956,97.649,97.6,3.35689186]
[1770195685038,4.20309956,97.649,97.56,154.16]